fUSD/lending_fUSD_20260606
["ID","MTS","AMOUNT","RATE_DAILY","PERIOD"]
[424278805,1780732245000,-150.0,0.00013916,2]
[424278785,1780732245000,-150.0,0.0001383,2]
[424278800,1780732245000,-933.0,0.00013901,2]
[424278788,1780732245000,-150.0,0.00013844,2]
[424278760,1780732245000,-500.0,0.00013699,2]
[424278784,1780732245000,-150.0,0.00013821,2]
[424278764,1780732245000,-500.0,0.00013699,2]
[424278759,1780732245000,-500.0,0.00013699,2]
[424278763,1780732245000,-500.0,0.00013699,2]
[424278762,1780732245000,-600.27557782,0.00013699,2]
[424278757,1780732245000,-500.0,0.00013699,2]
[424278766,1780732245000,-300.0,0.00013699,2]
[424278773,1780732245000,-150.0,0.00013745,2]
[424278774,1780732245000,-150.0,0.00013748,2]
[424278768,1780732245000,-150.0,0.00013702,2]
[424278767,1780732245000,-150.0,0.00013699,2]
[424278775,1780732245000,-150.0,0.00013748,2]
[424278765,1780732245000,-500.0,0.00013699,2]
[424278771,1780732245000,-150.0,0.00013732,2]
[424278778,1780732245000,-150.0,0.00013781,2]
[424278770,1780732245000,-150.0,0.00013716,2]
[424278777,1780732245000,-150.0,0.00013773,2]
[424278781,1780732245000,-150.0,0.00013813,2]
[424278779,1780732245000,-150.0,0.00013787,2]
[424278782,1780732245000,-150.0,0.00013813,2]
[424278787,1780732245000,-166.66,0.00013836,2]
[424278780,1780732245000,-150.0,0.00013797,2]
[424278776,1780732245000,-150.0,0.00013765,2]
[424278772,1780732245000,-311.10517088,0.00013738,2]
[424278769,1780732245000,-150.0,0.00013702,2]
[424278783,1780732245000,-150.0,0.00013821,2]
[424278858,1780732246000,-150.0,0.00014258,2]
[424278847,1780732246000,-150.0,0.00014172,2]
[424278848,1780732246000,-150.0,0.00014173,2]
[424278856,1780732246000,-166.66,0.00014247,2]
[424278855,1780732246000,-150.0,0.00014237,2]
[424278852,1780732246000,-150.0,0.00014204,2]
[424278854,1780732246000,-150.0,0.00014221,2]
[424278851,1780732246000,-150.0,0.00014204,2]
[424278849,1780732246000,-150.0,0.00014188,2]
[424278850,1780732246000,-150.0,0.00014201,2]
[424278857,1780732246000,-150.0,0.00014253,2]
[424278853,1780732246000,-150.0,0.00014216,2]
[424278859,1780732246000,-150.0,0.0001427,2]
[424278882,1780732246000,-150.0,0.00014432,2]
[424278864,1780732246000,-150.0,0.00014302,2]
[424278867,1780732246000,-150.0,0.0001432,2]
[424278865,1780732246000,-150.0,0.00014318,2]
[424278868,1780732246000,-150.0,0.00014335,2]
[424278861,1780732246000,-150.0,0.00014273,2]
[424278870,1780732246000,-150.0,0.00014344,2]
[424278862,1780732246000,-150.0,0.00014286,2]
[424278866,1780732246000,-150.0,0.0001432,2]
[424278863,1780732246000,-150.0,0.00014301,2]
[424278871,1780732246000,-150.0,0.00014344,2]
[424278869,1780732246000,-150.0,0.00014335,2]
[424278845,1780732246000,-150.0,0.00014154,2]
[424278860,1780732246000,-150.0,0.0001427,2]
[424278844,1780732246000,-150.0,0.00014154,2]
[424278822,1780732246000,-32000.0,0.00014,2]
[424278841,1780732246000,-150.0,0.0001413,2]
[424278821,1780732246000,-250.0,0.00014,2]
[424278881,1780732246000,-150.0,0.0001443,2]
[424278820,1780732246000,-150.0,0.00013993,2]
[424278816,1780732246000,-150.0,0.00013987,2]
[424278819,1780732246000,-40250.73951665,0.0001399,2]
[424278815,1780732246000,-150.0,0.00013987,2]
[424278817,1780732246000,-150.0,0.00013987,2]
[424278818,1780732246000,-150.0,0.00013987,2]
[424278834,1780732246000,-150.0,0.00014087,2]
[424278832,1780732246000,-150.0,0.00014074,2]
[424278833,1780732246000,-150.0,0.00014074,2]
[424278826,1780732246000,-150.0,0.00014009,2]
[424278825,1780732246000,-150.0,0.00014009,2]
[424278843,1780732246000,-150.0,0.00014139,2]
[424278824,1780732246000,-1500.0,0.00014006,2]
[424278831,1780732246000,-150.0,0.00014059,2]
[424278827,1780732246000,-150.0,0.00014025,2]
[424278829,1780732246000,-150.0,0.00014044,2]
[424278828,1780732246000,-150.0,0.00014042,2]
[424278830,1780732246000,-150.0,0.00014058,2]
[424278846,1780732246000,-150.0,0.00014156,2]
[424278836,1780732246000,-150.0,0.00014107,2]
[424278835,1780732246000,-150.0,0.0001409,2]
[424278837,1780732246000,-166.66,0.0001411,2]
[424278838,1780732246000,-342.71000071,0.0001411,2]
[424278839,1780732246000,-150.0,0.00014123,2]
[424278842,1780732246000,-150.0,0.00014139,2]
[424278840,1780732246000,-150.0,0.0001413,2]
[424278823,1780732246000,-150.0,0.00014001,2]
[424278880,1780732246000,-150.0,0.00014416,2]
[424278895,1780732246000,-150.0,0.00014498,2]
[424278873,1780732246000,-150.0,0.00014367,2]
[424278924,1780732246000,-150.0,0.00014687,2]
[424278916,1780732246000,-150.0,0.00014629,2]
[424278918,1780732246000,-150.0,0.00014644,2]
[424278920,1780732246000,-150.0,0.00014653,2]
[424278926,1780732246000,-150.0,0.00014701,2]
[424278917,1780732246000,-150.0,0.00014644,2]
[424278925,1780732246000,-150.0,0.00014693,2]
[424278915,1780732246000,-150.0,0.00014628,2]
[424278913,1780732246000,-150.0,0.00014612,2]
[424278921,1780732246000,-150.0,0.00014661,2]
[424278919,1780732246000,-150.0,0.00014653,2]
[424278922,1780732246000,-150.0,0.00014661,2]
[424278923,1780732246000,-150.0,0.00014677,2]
[424278875,1780732246000,-150.0,0.00014384,2]
[424278936,1780732246000,-150.0,0.00014772,2]
[424278937,1780732246000,-150.0,0.00014772,2]
[424278939,1780732246000,-150.0,0.00014775,2]
[424278929,1780732246000,-150.0,0.00014726,2]
[424278930,1780732246000,-150.0,0.00014729,2]
[424278934,1780732246000,-787.0,0.00014754,2]
[424278933,1780732246000,-150.0,0.00014742,2]
[424278927,1780732246000,-150.0,0.00014709,2]
[424278931,1780732246000,-787.0,0.0001473,2]
[424278932,1780732246000,-787.0,0.00014736,2]
[424278935,1780732246000,-150.0,0.00014758,2]
[424278941,1780732246000,-150.0,0.00014791,2]
[424278940,1780732246000,-150.0,0.00014791,2]
[424278911,1780732246000,-150.0,0.00014601,2]
[424278907,1780732246000,-150.0,0.00014579,2]
[424278928,1780732246000,-150.0,0.00014726,2]
[424278899,1780732246000,-150.0,0.0001453,2]
[424278910,1780732246000,-150.0,0.00014595,2]
[424278872,1780732246000,-150.0,0.00014351,2]
[424278879,1780732246000,-150.0,0.00014415,2]
[424278874,1780732246000,-166.66,0.00014384,2]
[424278883,1780732246000,-150.0,0.00014449,2]
[424278878,1780732246000,-150.0,0.000144,2]
[424278884,1780732246000,-150.0,0.00014465,2]
[424278876,1780732246000,-150.0,0.00014387,2]
[424278886,1780732246000,-150.0,0.00014472,2]
[424278894,1780732246000,-150.0,0.00014487,2]
[424278896,1780732246000,-150.0,0.00014514,2]
[424278885,1780732246000,-150.0,0.00014465,2]
[424278897,1780732246000,-150.0,0.00014515,2]
[424278892,1780732246000,-150.0,0.00014487,2]
[424278877,1780732246000,-150.0,0.000144,2]
[424278888,1780732246000,-4306.0,0.00014484,5]
[424278887,1780732246000,-150.0,0.00014481,2]
[424278904,1780732246000,-150.0,0.00014558,2]
[424278901,1780732246000,-1555.5,0.00014554,2]
[424278905,1780732246000,-150.0,0.00014563,2]
[424278906,1780732246000,-200.0,0.00014574,2]
[424278903,1780732246000,-150.0,0.00014558,2]
[424278908,1780732246000,-150.0,0.00014595,2]
[424278898,1780732246000,-150.0,0.0001453,2]
[424278893,1780732246000,-150.0,0.00014487,2]
[424278889,1780732246000,-3444.0,0.00014484,5]
[424278891,1780732246000,-150.0,0.00014487,2]
[424278890,1780732246000,-150.0,0.00014487,2]
[424278900,1780732246000,-150.0,0.00014546,2]
[424278962,1780732247000,-787.0,0.00014862,2]
[424278961,1780732247000,-150.0,0.00014858,2]
[424278960,1780732247000,-150.0,0.00014856,2]
[424278957,1780732247000,-150.0,0.00014844,2]
[424278959,1780732247000,-150.0,0.00014856,2]
[424278965,1780732247000,-25000.0,0.00014882,3]
[424278975,1780732247000,-787.0,0.00014907,2]
[424278966,1780732247000,-150.0,0.00014889,2]
[424278967,1780732247000,-190.62685279,0.00014889,2]
[424278968,1780732247000,-25000.0,0.00014891,3]
[424278971,1780732247000,-318.00214626,0.000149,2]
[424278970,1780732247000,-25000.0,0.000149,3]
[424278969,1780732247000,-787.0,0.00014898,2]
[424278964,1780732247000,-25000.0,0.00014874,3]
[424278958,1780732247000,-787.0,0.00014849,2]
[424278946,1780732247000,-150.0,0.00014807,2]
[424278953,1780732247000,-787.0,0.00014831,2]
[424278963,1780732247000,-150.0,0.00014872,2]
[424278954,1780732247000,-787.0,0.00014836,2]
[424278956,1780732247000,-150.0,0.0001484,2]
[424278952,1780732247000,-787.0,0.00014825,2]
[424278942,1780732247000,-206.57607559,0.00014794,2]
[424278950,1780732247000,-787.0,0.00014823,2]
[424278949,1780732247000,-150.0,0.0001482,2]
[424278944,1780732247000,-787.0,0.00014802,2]
[424278947,1780732247000,-150.0,0.00014815,2]
[424278951,1780732247000,-150.0,0.00014823,2]
[424278945,1780732247000,-787.0,0.00014803,2]
[424278948,1780732247000,-150.0,0.0001482,2]
[424278972,1780732247000,-233.03875878,0.000149,2]
[424278955,1780732247000,-787.0,0.00014838,2]
[424278974,1780732247000,-150.0,0.00014905,2]
[424278943,1780732247000,-787.0,0.00014798,2]
[424278976,1780732247000,-787.0,0.00014908,2]
[424278992,1780732247000,-787.0,0.0001498,2]
[424278973,1780732247000,-150.0,0.00014901,2]
[424278994,1780732247000,-255.83575464,0.00014986,2]
[424278998,1780732247000,-150.0,0.00014986,2]
[424279004,1780732247000,-787.0,0.00014995,2]
[424278999,1780732247000,-294.855623,0.00014986,2]
[424278993,1780732247000,-787.0,0.00014985,2]
[424279000,1780732247000,-151.41923818,0.00014986,2]
[424279002,1780732247000,-160.88134904,0.00014986,2]
[424279006,1780732247000,-151.0,0.00014997,2]
[424279005,1780732247000,-151.0,0.00014997,2]
[424279007,1780732247000,-787.0,0.00014998,2]
[424279008,1780732247000,-2397839.56465235,0.00015,2]
[424279003,1780732247000,-1000.0,0.0001499,2]
[424279001,1780732247000,-168.37532272,0.00014986,2]
[424278996,1780732247000,-151.5407187,0.00014986,2]
[424278997,1780732247000,-150.0,0.00014986,2]
[424278995,1780732247000,-150.0,0.00014986,2]
[424278978,1780732247000,-150.0,0.00014921,2]
[424278977,1780732247000,-150.0,0.00014915,2]
[424278982,1780732247000,-150.0,0.00014937,2]
[424278991,1780732247000,-787.0,0.0001498,2]
[424278979,1780732247000,-150.0,0.00014921,2]
[424278987,1780732247000,-101025.3248129,0.00014947,2]
[424278981,1780732247000,-632.53844444,0.00014933,2]
[424278980,1780732247000,-787.0,0.00014924,2]
[424278985,1780732247000,-2149.1922811,0.00014947,2]
[424278984,1780732247000,-190.62685279,0.00014945,2]
[424278983,1780732247000,-150.0,0.00014943,2]
[424278988,1780732247000,-150.0,0.00014954,2]
[424278989,1780732247000,-787.0,0.00014967,2]
[424278990,1780732247000,-150.0,0.0001497,2]
[424278986,1780732247000,-2804.9666047,0.00014947,2]
[424279013,1780732248000,-108.31148801,0.00015,2]
[424279011,1780732248000,-151.0,0.00012,2]
[424279012,1780732248000,-152.0,0.0001301,7]
[424279014,1780732248000,-2599.63442387,0.00015,2]
[424279009,1780732248000,-1925.04449865,0.00015,2]
[424279010,1780732248000,-539.294502,0.00015,2]
[424279015,1780732251000,-1309.96539186,0.00015,2]
[424279017,1780732251000,-3510.00185186,0.00015,2]
[424279016,1780732251000,-699.15278531,0.00015,2]
[424279021,1780732252000,-419.0,0.00013901,2]
[424279022,1780732252000,-132241.56360451,0.00015,2]
[424279020,1780732252000,-151.0,0.00012,2]
[424279019,1780732252000,-1110.99999,0.00015,2]
[424279018,1780732252000,-151.0,0.00012,2]
[424279023,1780732262000,152.0,0.00010191,30]
[424279024,1780732263000,152.0,0.00029843,120]
[424279026,1780732630000,353.21,0.00030082,120]
[424279031,1780732721000,200.0,8.374e-05,7]
[424279032,1780732732000,1500.0,0.00030136,120]
[424279033,1780732810000,10000.0,0.00030137,120]
[424279038,1780733050000,172.78,5.979e-05,2]
[424279040,1780733123000,-1770.32,7.709e-05,2]
[424279043,1780733123000,-150.0,7.94e-05,2]
[424279042,1780733123000,-150.0,7.862e-05,2]
[424279041,1780733123000,-150.0,7.785e-05,2]
[424279044,1780733123000,-1255.37180677,8.017e-05,2]
[424279045,1780733123000,-150.0,8.017e-05,2]
[424279046,1780733123000,-150.0,8.094e-05,2]
[424279047,1780733123000,-326.01117055,8.145e-05,2]
[424279049,1780733123000,-216.0,8.171e-05,2]
[424279052,1780733123000,-2000.0,8.219e-05,2]
[424279051,1780733123000,-250.0,8.215e-05,2]
[424279050,1780733123000,-150.0,8.18e-05,2]
[424279053,1780733123000,-500.0,8.284e-05,2]
[424279054,1780733123000,-40.97702268,8.287e-05,2]
[424279048,1780733123000,-1208.32,8.145e-05,2]
[424279063,1780733211000,-691.25,7.851e-05,2]
[424279061,1780733211000,-150.0,7.602e-05,2]
[424279062,1780733211000,-250.0,7.747e-05,2]
[424279060,1780733211000,-298.75,7.457e-05,2]
[424279069,1780733305000,-150.0,8.1e-05,2]
[424279066,1780733305000,-2903.61,7.689e-05,2]
[424279067,1780733305000,-2874.03,7.851e-05,2]
[424279068,1780733305000,-198.73,8.036e-05,2]
[424279070,1780733305000,-250.0,8.119e-05,2]
[424279072,1780733305000,-200.0,8.374e-05,2]
[424279073,1780733305000,-215.80795776,8.453e-05,2]
[424279074,1780733305000,-250.0,8.458e-05,2]
[424279071,1780733305000,-250.0,8.203e-05,2]
[424279076,1780733305000,-163.70609349,8.48e-05,2]
[424279075,1780733305000,-160.0,8.475e-05,2]
[424279082,1780733358000,-161.0,8.521e-05,2]
[424279084,1780733358000,-150.0,8.55e-05,2]
[424279085,1780733358000,-427.42192071,8.55e-05,2]
[424279083,1780733358000,-300.0,8.55e-05,2]
[424279081,1780733358000,-190.64451982,8.509e-05,2]
[424279080,1780733358000,-190.64451982,8.509e-05,2]
[424279078,1780733358000,-190.64451982,8.508e-05,2]
[424279079,1780733358000,-190.64451983,8.509e-05,2]
[424279077,1780733358000,-255.0,8.508e-05,2]
[424279091,1780733383000,-128.04674194,8.55e-05,2]
[424279090,1780733383000,-1167.670084,8.178e-05,2]
[424279093,1780733383000,-555.46866265,8.55e-05,2]
[424279094,1780733383000,-555.46866265,8.55e-05,2]
[424279095,1780733383000,-555.46866265,8.55e-05,2]
[424279092,1780733383000,-555.46866265,8.55e-05,2]
[424279103,1780733384000,-555.46866265,8.55e-05,2]
[424279100,1780733384000,-555.46866265,8.55e-05,2]
[424279102,1780733384000,-555.46866265,8.55e-05,2]
[424279101,1780733384000,-555.46866265,8.55e-05,2]
[424279106,1780733384000,-555.46866265,8.55e-05,2]
[424279107,1780733384000,-492.12222724,8.55e-05,2]
[424279104,1780733384000,-508.41562517,8.55e-05,2]
[424279097,1780733384000,-115.91626906,8.55e-05,2]
[424279099,1780733384000,-555.46866265,8.55e-05,2]
[424279098,1780733384000,-555.46866265,8.55e-05,2]
[424279096,1780733384000,-439.55239359,8.55e-05,2]
[424279105,1780733384000,-47.05303748,8.55e-05,2]
[424279113,1780733432000,-500.0,8.408e-05,2]
[424279117,1780733432000,-1629889.22255247,8.451e-05,2]
[424279115,1780733432000,-9825.11803028,8.451e-05,2]
[424279119,1780733432000,-51844.69640227,8.451e-05,2]
[424279125,1780733432000,-1437.25959781,8.451e-05,2]
[424279121,1780733432000,-73967.51030884,8.451e-05,2]
[424279122,1780733432000,-170995.08409078,8.451e-05,2]
[424279171,1780733438000,-555.46866265,8.55e-05,2]
[424279175,1780733438000,-555.46866265,8.55e-05,2]
[424279169,1780733438000,-555.46866265,8.55e-05,2]
[424279173,1780733438000,-555.46866265,8.55e-05,2]
[424279177,1780733438000,-555.46866265,8.55e-05,2]
[424279176,1780733438000,-555.46866265,8.55e-05,2]
[424279160,1780733438000,-555.46866265,8.55e-05,2]
[424279170,1780733438000,-555.46866265,8.55e-05,2]
[424279174,1780733438000,-555.46866265,8.55e-05,2]
[424279167,1780733438000,-555.46866265,8.55e-05,2]
[424279178,1780733438000,-555.46866265,8.55e-05,2]
[424279168,1780733438000,-555.46866265,8.55e-05,2]
[424279163,1780733438000,-555.46866265,8.55e-05,2]
[424279159,1780733438000,-555.46866265,8.55e-05,2]
[424279172,1780733438000,-555.46866265,8.55e-05,2]
[424279157,1780733438000,-555.46866265,8.55e-05,2]
[424279158,1780733438000,-555.46866265,8.55e-05,2]
[424279180,1780733438000,-555.46866265,8.55e-05,2]
[424279148,1780733438000,-1211.96949075,8.451e-05,2]
[424279152,1780733438000,-555.46866265,8.55e-05,2]
[424279150,1780733438000,-63.34643541,8.55e-05,2]
[424279149,1780733438000,-560829.1395268,8.451e-05,2]
[424279151,1780733438000,-555.46866265,8.55e-05,2]
[424279156,1780733438000,-555.46866265,8.55e-05,2]
[424279154,1780733438000,-555.46866265,8.55e-05,2]
[424279164,1780733438000,-555.46866265,8.55e-05,2]
[424279166,1780733438000,-555.46866265,8.55e-05,2]
[424279153,1780733438000,-555.46866265,8.55e-05,2]
[424279161,1780733438000,-555.46866265,8.55e-05,2]
[424279162,1780733438000,-555.46866265,8.55e-05,2]
[424279155,1780733438000,-555.46866265,8.55e-05,2]
[424279165,1780733438000,-555.46866265,8.55e-05,2]
[424279190,1780733438000,-1162.60882881,8.55e-05,2]
[424279222,1780733438000,-500.0,8.55e-05,2]
[424279179,1780733438000,-555.46866265,8.55e-05,2]
[424279182,1780733438000,-1162.60882881,8.55e-05,2]
[424279216,1780733438000,-500.0,8.55e-05,2]
[424279213,1780733438000,-215.80795776,8.55e-05,2]
[424279217,1780733438000,-394.72744842,8.55e-05,2]
[424279221,1780733438000,-360.82127347,8.55e-05,2]
[424279211,1780733438000,-500.0,8.55e-05,2]
[424279219,1780733438000,-160.0,8.55e-05,2]
[424279220,1780733438000,-622.27972785,8.55e-05,2]
[424279208,1780733438000,-444.15638091,8.55e-05,2]
[424279218,1780733438000,-165.35741348,8.55e-05,2]
[424279209,1780733438000,-303.57008324,8.55e-05,2]
[424279198,1780733438000,-1162.60882881,8.55e-05,2]
[424279194,1780733438000,-1162.60882881,8.55e-05,2]
[424279197,1780733438000,-1162.60882881,8.55e-05,2]
[424279200,1780733438000,-1162.60882881,8.55e-05,2]
[424279215,1780733438000,-500.0,8.55e-05,2]
[424279195,1780733438000,-1162.60882881,8.55e-05,2]
[424279206,1780733438000,-234.99843405,8.55e-05,2]
[424279181,1780733438000,-1162.60882881,8.55e-05,2]
[424279184,1780733438000,-1162.60882881,8.55e-05,2]
[424279186,1780733438000,-1162.60882881,8.55e-05,2]
[424279189,1780733438000,-1162.60882881,8.55e-05,2]
[424279188,1780733438000,-1162.60882881,8.55e-05,2]
[424279185,1780733438000,-1162.60882881,8.55e-05,2]
[424279183,1780733438000,-1162.60882881,8.55e-05,2]
[424279191,1780733438000,-1162.60882881,8.55e-05,2]
[424279192,1780733438000,-1162.60882881,8.55e-05,2]
[424279202,1780733438000,-1162.60882881,8.55e-05,2]
[424279203,1780733438000,-1162.60882881,8.55e-05,2]
[424279204,1780733438000,-1162.60882881,8.55e-05,2]
[424279187,1780733438000,-1162.60882881,8.55e-05,2]
[424279193,1780733438000,-1162.60882881,8.55e-05,2]
[424279272,1780733439000,-3624.98,0.00010475,2]
[424279265,1780733439000,-433.0,0.00010346,2]
[424279263,1780733439000,-2000.0,0.00010274,2]
[424279274,1780733439000,-299.99,0.00010475,2]
[424279264,1780733439000,-4000.0,0.00010278,2]
[424279262,1780733439000,-803.7837545,0.00010251,2]
[424279253,1780733439000,-500.0,9.098e-05,2]
[424279256,1780733439000,-200.06507095,9.359e-05,2]
[424279257,1780733439000,-255.0,9.405e-05,2]
[424279268,1780733439000,-9999.99,0.00010475,2]
[424279254,1780733439000,-2000.0,9.247e-05,2]
[424279260,1780733439000,-150.77549905,0.0001,2]
[424279255,1780733439000,-344150.06194665,9.315e-05,2]
[424279279,1780733439000,-4000.0,0.00010779,2]
[424279266,1780733439000,-150.99,0.00010475,2]
[424279271,1780733439000,-9999.99,0.00010475,2]
[424279270,1780733439000,-6063.7,0.00010475,2]
[424279267,1780733439000,-489.66,0.00010475,2]
[424279273,1780733439000,-499.99,0.00010475,2]
[424279275,1780733439000,-24999.99,0.00010475,2]
[424279276,1780733439000,-4999.99,0.00010475,2]
[424279277,1780733439000,-1829.30337129,0.00010526,2]
[424279278,1780733439000,-4000.0,0.00010529,2]
[424279283,1780733439000,-6488.20928438,0.000109,2]
[424279286,1780733439000,-217.94,0.00010989,2]
[424279288,1780733439000,-4000.0,0.0001103,2]
[424279258,1780733439000,-208.0,9.405e-05,2]
[424279287,1780733439000,-245.95,0.00010989,2]
[424279269,1780733439000,-9999.99,0.00010475,2]
[424279259,1780733439000,-200.0,9.441e-05,2]
[424279240,1780733439000,-500.0,8.551e-05,2]
[424279251,1780733439000,-500.0,8.824e-05,2]
[424279284,1780733439000,-150.0,0.00010959,2]
[424279223,1780733439000,-1000.0,8.551e-05,2]
[424279227,1780733439000,-150.0,8.551e-05,2]
[424279225,1780733439000,-300.775,8.551e-05,2]
[424279224,1780733439000,-5741.478,8.551e-05,2]
[424279228,1780733439000,-198.79826916,8.551e-05,2]
[424279235,1780733439000,-500.0,8.551e-05,2]
[424279231,1780733439000,-433.31021199,8.551e-05,2]
[424279226,1780733439000,-16639.59646462,8.551e-05,2]
[424279236,1780733439000,-500.0,8.551e-05,2]
[424279229,1780733439000,-250.42270652,8.551e-05,2]
[424279230,1780733439000,-500.0,8.551e-05,2]
[424279233,1780733439000,-182.72983832,8.551e-05,2]
[424279261,1780733439000,-4000.0,0.00010027,2]
[424279232,1780733439000,-500.0,8.551e-05,2]
[424279237,1780733439000,-500.0,8.551e-05,2]
[424279239,1780733439000,-500.0,8.551e-05,2]
[424279241,1780733439000,-500.0,8.551e-05,2]
[424279242,1780733439000,-298.26669332,8.551e-05,2]
[424279249,1780733439000,-264.34,8.721e-05,2]
[424279246,1780733439000,-214.0,8.635e-05,2]
[424279250,1780733439000,-33261.1868,8.722e-05,2]
[424279243,1780733439000,-161.49147034,8.553e-05,2]
[424279248,1780733439000,-4453.1617,8.676e-05,2]
[424279244,1780733439000,-463.86551239,8.557e-05,2]
[424279245,1780733439000,-9111.96,8.557e-05,2]
[424279247,1780733439000,-1242.2138,8.676e-05,2]
[424279252,1780733439000,-1173.66,8.826e-05,2]
[424279234,1780733439000,-500.0,8.551e-05,2]
[424279282,1780733439000,-6488.20928439,0.000109,2]
[424279238,1780733439000,-478.73197569,8.551e-05,2]
[424279281,1780733439000,-2211.0,0.00010889,5]
[424279318,1780733439000,-25000.0,0.00012884,3]
[424279324,1780733439000,-3642.0,0.00013292,2]
[424279323,1780733439000,-933.0,0.00013292,2]
[424279320,1780733439000,-500.0,0.00012913,2]
[424279322,1780733439000,-1227.0,0.00013266,2]
[424279321,1780733439000,-166.66,0.00013083,2]
[424279338,1780733439000,-500.0,0.00013425,2]
[424279331,1780733439000,-500.0,0.00013425,2]
[424279327,1780733439000,-500.0,0.00013425,2]
[424279332,1780733439000,-500.0,0.00013425,2]
[424279347,1780733439000,-500.0,0.00013425,2]
[424279337,1780733439000,-500.0,0.00013425,2]
[424279335,1780733439000,-500.0,0.00013425,2]
[424279319,1780733439000,-25000.0,0.00012893,3]
[424279329,1780733439000,-500.0,0.00013425,2]
[424279336,1780733439000,-455.95353758,0.00013425,2]
[424279330,1780733439000,-500.0,0.00013425,2]
[424279334,1780733439000,-500.0,0.00013425,2]
[424279333,1780733439000,-500.0,0.00013425,2]
[424279340,1780733439000,-500.0,0.00013425,2]
[424279339,1780733439000,-500.0,0.00013425,2]
[424279341,1780733439000,-500.0,0.00013425,2]
[424279342,1780733439000,-500.0,0.00013425,2]
[424279343,1780733439000,-500.0,0.00013425,2]
[424279348,1780733439000,-500.0,0.00013425,2]
[424279345,1780733439000,-500.0,0.00013425,2]
[424279346,1780733439000,-500.0,0.00013425,2]
[424279280,1780733439000,-776.04553073,0.00010831,2]
[424279328,1780733439000,-500.0,0.00013425,2]
[424279326,1780733439000,-1500.0,0.00013423,2]
[424279344,1780733439000,-500.0,0.00013425,2]
[424279317,1780733439000,-170.65934925,0.00012883,2]
[424279325,1780733439000,-67244.73253929,0.00013422,2]
[424279285,1780733439000,-150.0,0.00010959,2]
[424279290,1780733439000,-67244.73253929,0.00011099,2]
[424279292,1780733439000,-67244.73253929,0.00011099,2]
[424279291,1780733439000,-67244.73253929,0.00011099,2]
[424279293,1780733439000,-296.27,0.00011233,2]
[424279294,1780733439000,-67244.73253929,0.00011294,2]
[424279297,1780733439000,-402.0,0.0001138,2]
[424279295,1780733439000,-250.0,0.00011297,2]
[424279296,1780733439000,-2000.0,0.00011301,2]
[424279298,1780733439000,-150.77549905,0.00011679,2]
[424279299,1780733439000,-1000.0,0.00011775,2]
[424279300,1780733439000,-500.0,0.00011918,2]
[424279301,1780733439000,-1548.0,0.00011922,2]
[424279289,1780733439000,-67244.73253936,0.00011099,2]
[424279302,1780733439000,-67244.73253929,0.00012003,2]
[424279314,1780733439000,-152.0,0.00012818,7]
[424279303,1780733439000,-6718.06,0.00012055,2]
[424279313,1780733439000,-152.0,0.00012818,7]
[424279310,1780733439000,-166.66,0.00012665,2]
[424279309,1780733439000,-199.5,0.00012602,2]
[424279306,1780733439000,-353.21,0.00012329,2]
[424279315,1780733439000,-25000.0,0.00012866,3]
[424279308,1780733439000,-171.35500035,0.00012575,2]
[424279312,1780733439000,-67244.73253929,0.00012712,2]
[424279311,1780733439000,-500.0,0.00012712,2]
[424279305,1780733439000,-515.1714725,0.00012228,2]
[424279316,1780733439000,-25000.0,0.00012875,3]
[424279307,1780733439000,-2000.0,0.00012329,2]
[424279304,1780733439000,-1933.01,0.00012087,2]
[424279403,1780733440000,-67244.73253929,0.00014131,2]
[424279380,1780733440000,-150.0,0.00013901,2]